[Event "Slovakia Open 2022"]
[Site "Bratislava"]
[Date "2022.10.01"]
[Round "6.12"]
[White "Hnatyshyn, Anastasiia"]
[Black "Klabis, Rokas"]
[Result "1/2-1/2"]
[ECO "C60"]
[WhiteElo "2087"]
[BlackElo "2396"]
[Annotator "TA"]
[PlyCount "143"]
[EventDate "2022.09.30"]
[EventCountry "SVK"]
[SourceTitle "playchess.com"]
[Source "ChessBase"]
[SourceQuality "1"]
[TimeControl "2700+10"]

{[%evp 12,143,36,31,36,33,56,30,32,0,15,0,2,7,54,14,6,18,16,-1,-7,-10,-15,-10,0,-32,-23,-43,-8,-8,-8,-8,-8,-8,-8,0,0,-24,0,-9,0,0,0,-36,-5,-5,63,0,0,0,0,0,0,0,24,0,24,0,24,0,0,0,0,0,0,0,0,0,0,-361,-316,-297,-318,-606,-602,-1105,-1100,-1204,-1165,-1036,-931,-1592,-850,-891,0,-1466,-1625,-1635,-1237,-2939,-12110,-5089,-3145,-29979,-29980,-29981,-29981,-29978,-29981,-29985,-29983,-29978,-29971,-29970,-29972,-29972,-29973,-29970,-29972,-29977,-29978,-29977,-29978,-29979,-29980,-29976,-495,-29985,-29986,-29986,-139,-140,0,0,0,0,0,0,0,0,0,0,0,-8]} 1. e4 {[%emt 0:00:04]} e5 {[%emt 0:00:04]} 2. Nf3 {[%emt 0:00:03]} Nc6 {[%emt 0:00:04]} 3. Bb5 {[%emt 0:00:02]} Nge7 {[%emt 0:00:03]} 4. O-O {[%emt 0:00:06]} g6 {[%emt 0:00:03]} 5. c3 {[%emt 0:00:05]} Bg7 {[%emt 0:00:02]} 6. d4 {[%emt 0:00:05]} exd4 {[%emt 0:00:02]} 7. cxd4 {[%emt 0:00:02]} ({Much weaker is} 7. Nxd4 Nxd4 8. cxd4 O-O $15) 7... a6 $1 {[%emt 0:00:02][%mdl 4] is now more promising than 7...d5. C60: Ruy Lopez: Unusual Black 3rd moves and 3...g6.} 8. Bc4 {[%emt 0:00:19]} O-O {[%emt 0:01:16]} 9. Nc3 {[%emt 0:00:30]} (9. d5 $5 {[%cal Rd5c6]} Na5 10. Bd3 $11) 9... b5 {[%emt 0:00:03] White has an edge.} 10. Bb3 {[%emt 0:00:12]} (10. Bd5 $5) 10... Na5 {[%emt 0:00:01][%cal Bc6a5,Ba5c4,Bc4e3][%mdl 32]} 11. Bc2 {[%emt 0:02:00]} (11. Bg5 {is more complex.} h6 12. Bxe7 Qxe7 13. Nd5) 11... d6 {[%emt 0:00:08]} 12. h3 {[%emt 0:01:41]} h6 {[%emt 0:00:43]} (12... c5 $11 {should be considered.}) 13. a4 {[%emt 0:04:14]} b4 {[%emt 0:00:03]} 14. Ne2 {[%emt 0:00:06]} c5 {[%emt 0:00:10]} 15. Be3 {[%emt 0:03:40]} (15. Bf4 $5 {[%cal Rd4c5]}) 15... Nc4 {[%emt 0:03:43] [#]} 16. Bb3 $146 {[%emt 0:01:59]} ({Predecessor:} 16. Bc1 Bb7 17. b3 Nb6 18. Nd2 cxd4 19. Bd3 Nc6 20. Bb2 Ne5 21. Nc4 Nbxc4 22. Bxc4 Nxc4 23. bxc4 {0-1 (32) Maksutov,S (2136)-Megalios,K (2401) Chess.com INT 2020}) 16... Nxe3 {[%emt 0:00:33]} 17. fxe3 {[%emt 0:00:03]} Bb7 {[%emt 0:00:24]} 18. Qd3 {[%emt 0:04:22]} a5 {[%emt 0:00:50]} 19. Rac1 {[%emt 0:01:20]} Ba6 {[%emt 0:02:18] This bishop pair is nice.} 20. Bc4 {[%emt 0:00:17]} Bxc4 {[%emt 0:00:03]} 21. Rxc4 {[%emt 0:00:15]} cxd4 {[%emt 0:01:47]} 22. Nexd4 {[%emt 0:02:36]} d5 {[%emt 0:00:08]} 23. exd5 {[%emt 0:00:02]} Qxd5 {[%emt 0:00:33]} 24. Rfc1 {[%emt 0:03:17]} Rac8 {[%emt 0:02:24]} 25. b3 {[%emt 0:02:49]} Rxc4 {[%emt 0:02:32]} 26. Rxc4 {[%emt 0:00:32]} Qd6 {[%emt 0:01:28]} 27. Qd2 {[%emt 0:03:58][%cal Od4c6]} Re8 {[%emt 0:03:47]} 28. e4 {[%emt 0:04:25] Inhibits Nd5.} Rc8 {[%emt 0:01:16] [#]} (28... Qb8 $11) 29. Qd3 {[%emt 0:06:09]} (29. Nf5 $1 $14 Qb6+ 30. Qe3 Qxe3+ 31. Nxe3) 29... Rc5 {[%emt 0:03:23]} 30. Rxc5 {[%emt 0:01:30]} Qxc5 {[%emt 0:00:02]} 31. Qc4 {[%emt 0:00:07]} Qxc4 {[%emt 0:06:34]} 32. bxc4 $11 {[%emt 0:00:03][%mdl 4096] Endgame KBN-KNN} Kf8 {[%emt 0:00:02]} 33. Kf1 {[%emt 0:00:25]} (33. Nb3 $5 {[%cal Rb3a5]}) 33... Ke8 {[%emt 0:00:25]} 34. Ke2 {[%emt 0:00:03]} (34. Nb3 $5 {[%cal Rb3a5]}) 34... Kd7 {[%emt 0:00:07]} 35. Kd3 {[%emt 0:00:11]} (35. Nb3 $5 {[%cal Rb3a5]}) 35... Bxd4 {[%emt 0:03:51]} 36. Nxd4 {[%emt 0:01:31] KN-KN} Nc6 {[%emt 0:00:01]} 37. Nb3 {[%emt 0:00:04]} Kd6 {[%emt 0:00:02]} 38. c5+ {[%emt 0:00:42]} Ke5 {[%emt 0:00:02]} 39. Nd2 {[%emt 0:00:27]} Kf4 {[%emt 0:04:00]} 40. Kc4 $2 {[%emt 0:00:47][%mdl 8192]} (40. Nb3 $11) 40... Ke3 $19 {[%emt 0:00:04]} 41. Nb3 {[%emt 0:00:16][%cal Ob3a5] Threatens to win with Nxa5!} Kxe4 {[%emt 0:00:03]} 42. Kb5 $2 {[%emt 0:00:05]} (42. Nd2+ Ke5 43. Kb5) 42... Kd5 {[%emt 0:00:05] ...f5 is the strong threat.} 43. Kb6 {[%emt 0:00:21]} f5 {[%emt 0:00:17]} 44. Nc1 {[%emt 0:00:18]} g5 {[%emt 0:00:16]} 45. Ne2 {[%emt 0:00:12]} f4 {[%emt 0:01:26][%cal Od5c4]} 46. Nc1 {[%emt 0:00:16]} Ne5 {[%emt 0:01:34] aiming for ...h5.} 47. Nb3 {[%emt 0:00:12]} Nc6 {[%emt 0:00:27]} (47... Nc4+ $142 48. Kb7 h5) 48. Nc1 $1 {[%emt 0:00:12]} h5 {[%emt 0:00:06]} 49. Ne2 {[%emt 0:00:11]} Ne5 {[%emt 0:00:59]} 50. h4 {[%emt 0:00:10]} f3 {[%emt 0:01:26]} 51. gxf3 {[%emt 0:00:05]} gxh4 {[%emt 0:00:02]} 52. f4 {[%emt 0:00:16]} Nd7+ {[%emt 0:00:14]} 53. Kb5 {[%emt 0:00:09]} Nxc5 {[%emt 0:00:07]} 54. f5 {[%emt 0:00:10]} Ne4 {[%emt 0:00:14]} 55. Kxa5 {[%emt 0:00:05]} b3 {[%emt 0:00:20]} 56. f6 {[%emt 0:00:04]} b2 {[%emt 0:01:37]} 57. f7 {[%emt 0:00:16]} b1=Q {[%emt 0:00:09]} 58. f8=Q {[%emt 0:00:14]} Qe1+ {[%emt 0:00:02]} 59. Kb6 {[%emt 0:00:06]} Qxe2 {[%emt 0:00:05]} 60. Qf5+ {[%emt 0:00:12]} Kd4 {[%emt 0:00:36]} 61. Qd7+ {[%emt 0:00:10]} Ke3 {[%emt 0:00:13]} 62. Qh3+ {[%emt 0:00:06]} Qf3 {[%emt 0:01:17]} 63. Qxh4 {[%emt 0:00:14]} Qg4 {[%emt 0:00:43]} (63... Qf6+ $142 64. Qxf6 Nxf6 65. a5 Nd7+ 66. Kc6 {[#]} h4 $1 67. Kxd7 h3 68. Ke6 h2 69. Kf5 h1=Q 70. a6 Qa8 71. Ke6 Qxa6+ 72. Kd5 Qb6 73. Ke5 Qc6 74. Kf5 Qd6 75. Kg5 Qe6 76. Kh4 Kf4 77. Kh5 Qa6 78. Kh4 Qh6#) 64. Qxg4 {[%emt 0:00:10]} (64. Qe1+ $19 Kd3 65. a5 Qe6+ 66. Ka7 Qe7+ 67. Kb6 Qc5+ 68. Ka6) 64... hxg4 {[%emt 0:00:01] KN-KP} 65. a5 {[%emt 0:00:02]} Nc3 $2 {[%emt 0:00:26]} (65... g3 {mates} 66. a6 Nd6 67. Kc5 Nc8 68. Kc6 g2 69. Kb7 g1=Q 70. Kxc8 Qg7 71. Kb8 Kd4 72. a7 Kc5 73. a8=Q Kb6 74. Qa5+ Kxa5 75. Kc8 Kb6 76. Kd8 Qf7 77. Kc8 Qe8#) 66. a6 $17 {[%emt 0:00:05]} Nd5+ {[%emt 0:00:01]} (66... g3 $17 67. a7 g2) 67. Kb7 $11 {[%emt 0:00:03] The position is equal.} g3 {[%emt 0:00:12][%cal Bg4g3,Bg3g2][%mdl 32]} 68. a7 {[%emt 0:00:01]} g2 {[%emt 0:00:01]} 69. a8=Q {[%emt 0:00:03]} Kf3 {[%emt 0:00:04]} 70. Qf8+ {[%emt 0:00:41]} Nf4 {[%emt 0:00:02]} 71. Qg8 {[%emt 0:00:14]} Kf2 {[%emt 0:00:02]} 72. Qxg2+ {[%emt 0:00:06] And White is the lucky defender.  Weighted Error Value: White=0.57/Black=0.25 (precise)} 1/2-1/2

[Event "Slovakia Open 2022"]
[Site "Bratislava"]
[Date "2022.10.01"]
[Round "6.13"]
[White "Panko, Radoslav"]
[Black "Bombek, Peter"]
[Result "1-0"]
[ECO "D00"]
[WhiteElo "1996"]
[BlackElo "2083"]
[Annotator "TA"]
[PlyCount "135"]
[EventDate "2022.09.30"]
[EventCountry "SVK"]
[SourceTitle "playchess.com"]
[Source "ChessBase"]
[SourceQuality "1"]
[TimeControl "2700+10"]

{[%evp 11,135,0,0,-4,0,-8,-2,-20,-12,-4,-8,-9,-8,-357,-365,-357,-345,-357,-350,-358,-346,-343,-291,-402,-341,-343,-285,-441,-374,-403,-337,-321,-334,-458,-463,-466,-469,-453,-402,-566,-394,-379,-376,-389,-394,-401,-402,-477,-483,-605,-575,-789,-782,-757,-738,-866,-886,-918,-906,-841,-817,-856,-839,-766,-592,-561,-581,-596,-454,-616,-517,-627,-614,-616,-616,-686,-689,-592,-238,-220,-214,-202,-192,-167,-188,-166,-46,-179,-159,-166,-44,-154,-65,-71,0,0,0,0,0,0,0,0,763,0,0,0,0,0,0,0,29963,29966,29983,29984,29978,29979,29979,29979,29979,902,933,1075,29981,29982,29982,29983]} 1. d4 {[%emt 0:00:03]} d5 {[%emt 0:00:05]} 2. Bg5 {[%emt 0:00:04]} Nf6 {[%emt 0:00:17]} 3. Bxf6 {[%emt 0:00:07]} exf6 {[%emt 0:00:09]} 4. e3 {[%emt 0:00:04]} Bd6 {[%emt 0:01:02]} 5. Bd3 {[%emt 0:00:09]} O-O {[%emt 0:01:02]} 6. Nd2 {[%emt 0:00:08]} c6 {[%emt 0:01:48]} 7. Qf3 {[%emt 0:00:14] D00: 1 d4 d5: Unusual lines.} Be6 {[%emt 0:01:11]} 8. Ne2 {[%emt 0:00:07]} Nd7 {[%emt 0:00:45][%cal Bb8d7,Bd7e5,Be5f3][%mdl 32]} 9. g4 {[%emt 0:00:18] The position is equal.} Re8 {[%emt 0:01:26]} 10. h4 {[%emt 0:00:10]} c5 {[%emt 0:05:58]} 11. c3 {[%emt 0:00:45] [#]} b5 $146 {[%emt 0:00:28]} ({Predecessor:} 11... cxd4 12. Nxd4 Ne5 13. Qe2 Bxg4 14. f3 Nxd3+ 15. Qxd3 Bg3+ 16. Kf1 Bh5 17. f4 Bg6 {0-1 (75) Aydin,H (1809)-Demiroglu,A (1530) Edirne 2013}) 12. dxc5 $2 {[%emt 0:02:18][%mdl 8192]} (12. Bxb5 Rb8 13. Bxd7 Qxd7 14. dxc5 Bxg4 15. Qxd5 Rxe3 $1 $15) (12. a3 $11) 12... Ne5 $19 {[%emt 0:00:41]} (12... Nxc5 13. Bxb5 Rb8 14. Nd4 $11 (14. Bxe8 Rxb2 15. Bxf7+ Kxf7 $11)) 13. cxd6 {[%emt 0:01:18][%cal Od3h7]} Nxf3+ {[%emt 0:00:36]} 14. Nxf3 {[%emt 0:00:03]} Bxg4 {[%emt 0:02:11]} ({Wrong is} 14... Qxd6 $2 15. Bxb5 Re7 16. Nfd4 $19) 15. Nfd4 {[%emt 0:00:21]} a6 {[%emt 0:00:46][%cal Ba7a6,Ba6a5][%mdl 32]} (15... Qxd6 $2 16. Bxb5 Reb8 17. b3 $19) 16. O-O-O {[%emt 0:02:19]} b4 {[%emt 0:01:37]} 17. Nc6 {[%emt 0:00:36]} Qxd6 {[%emt 0:00:49]} 18. Nxb4 {[%emt 0:00:03]} Kh8 {[%emt 0:00:59]} 19. Rdg1 {[%emt 0:00:22]} (19. Nc2 $142) 19... a5 {[%emt 0:01:48]} 20. Nc2 {[%emt 0:00:16]} Bxe2 {[%emt 0:00:25]} 21. Bxe2 {[%emt 0:00:02]} Rab8 {[%emt 0:00:35] Threatens to win with ...Qb6.} 22. Rg4 {[%emt 0:00:13]} f5 {[%emt 0:02:37]} 23. Rd4 {[%emt 0:02:13]} Qb6 {[%emt 0:03:47]} 24. b3 {[%emt 0:00:18]} Rec8 {[%emt 0:00:37]} 25. Kd2 {[%emt 0:00:56]} (25. Rhd1 $142) 25... Qc5 {[%emt 0:01:00]} 26. Rd3 {[%emt 0:00:33]} a4 {[%emt 0:01:23]} 27. b4 {[%emt 0:00:09]} Qc4 {[%emt 0:00:45]} 28. a3 {[%emt 0:00:16]} Rb6 {[%emt 0:04:08]} 29. Bf3 {[%emt 0:00:37]} Rd6 {[%emt 0:01:10]} 30. Bg2 {[%emt 0:00:24]} f4 {[%emt 0:01:08]} 31. Bf3 {[%emt 0:02:00]} fxe3+ {[%emt 0:00:18]} 32. fxe3 {[%emt 0:00:07]} Rf6 {[%emt 0:01:01][%cal Bd6f6,Bf6f5,Bf5g5][%mdl 32]} 33. Rh3 {[%emt 0:02:13]} h6 {[%emt 0:00:59]} 34. h5 {[%emt 0:00:28]} Rf5 {[%emt 0:01:00]} 35. Ke2 {[%emt 0:00:40]} Qa2 {[%emt 0:01:10]} 36. Kd2 {[%emt 0:00:24]} Rg5 {[%emt 0:00:54]} 37. Rh1 {[%emt 0:00:23]} Re8 {[%emt 0:01:05]} 38. Ra1 {[%emt 0:01:19]} Qc4 {[%emt 0:00:02]} 39. Rd4 {[%emt 0:00:41]} Qc7 {[%emt 0:00:06]} 40. Be2 {[%emt 0:03:29]} Qh2 {[%emt 0:00:51]} 41. b5 {[%emt 0:00:50]} Rb8 {[%emt 0:00:33]} 42. Rb4 {[%emt 0:00:32]} Rg2 {[%emt 0:00:50]} 43. Nd4 {[%emt 0:00:13]} f5 {[%emt 0:00:59]} 44. Rf1 {[%emt 0:00:26]} Rf2 {[%emt 0:00:13]} (44... Re8 $142 45. b6 Qe5) 45. Rxf2 {[%emt 0:00:39]} Qxf2 {[%emt 0:00:02]} 46. Rxa4 {[%emt 0:00:15]} f4 {[%emt 0:00:06]} ({Worse is} 46... Re8 47. Nc2) 47. exf4 {[%emt 0:00:08]} Qxf4+ {[%emt 0:00:04]} 48. Kc2 {[%emt 0:00:45]} Rc8 {[%emt 0:00:30]} (48... Qe4+ $19 49. Bd3 Qe1) 49. Rb4 {[%emt 0:00:25]} ({White must play} 49. b6 $15 Qg3 50. Bd3 Qf2+ 51. Be2) 49... Qe3 {[%emt 0:00:16]} 50. Bd3 {[%emt 0:00:20] [#]} Qf2+ {[%emt 0:00:15]} (50... Qe1 $1 $19 51. Nc6 Qa1) 51. Be2 {[%emt 0:02:22]} ({White has to play} 51. Ne2 $15) 51... Qe1 {[%emt 0:00:29]} (51... g6 $17 {...gxh5 is the strong threat.} 52. hxg6 Qe3) 52. Rb3 $1 $15 {[%emt 0:00:22]} Qa1 {[%emt 0:00:28]} ({Black should play} 52... g6 $17 {And now ...Qf2 would win.} 53. b6 gxh5) 53. b6 $11 {[%emt 0:00:23] Black must now prevent b7.} Qa2+ {[%emt 0:00:07]} 54. Kd3 {[%emt 0:00:07]} Rc4 {[%emt 0:00:09][%cal Oc4d4] Strongly threatening ...Rxd4+!} 55. Bd1 $1 {[%emt 0:00:22] Threatening mate with b7. Really sharp!} Qa1 $1 {[%emt 0:00:07]} 56. Kd2 {[%emt 0:00:11]} Qa2+ $2 {[%emt 0:00:22][%mdl 8192]} (56... Rxd4+ $11 57. cxd4 Qxd4+ 58. Ke2 Qe5+ 59. Kd2 Qd4+ 60. Ke2 Qe5+ 61. Kf1 Qf4+ 62. Ke2 Qe5+) 57. Kd3 $2 {[%emt 0:00:38]} (57. Bc2 $18 {b7 would kill now.} Rc8 58. b7) 57... Qa1 $1 {[%emt 0:00:02]} 58. Kd2 {[%emt 0:00:15]} Rxd4+ {[%emt 0:00:24]} 59. cxd4 {[%emt 0:00:13]} Qxd4+ {[%emt 0:00:02][%mdl 4096] Endgame KQ-KRB} 60. Kc1 {[%emt 0:00:10] Intending b7 and mate.} Qc5+ $2 {[%emt 0:00:19][%mdl 8192] [#]} (60... Qf4+ $11 61. Kc2 Qe4+ 62. Kc1 Qf4+ 63. Kb2 Qd4+ 64. Kc2 Qf2+ 65. Kc3 Qe3+ 66. Kc2 Qf2+ 67. Kd3 Qg3+ 68. Kd2 Qf4+ 69. Ke2 Qg4+ 70. Ke1 Qh4+ 71. Kd2 Qf4+ 72. Ke1 Qh4+ 73. Kf1 Qf4+ 74. Ke2 Qg4+ 75. Ke1 Qh4+) 61. Bc2 $1 {[%emt 0:00:09]} Qc8 {[%emt 0:00:09]} 62. b7 {[%emt 0:00:04][%cal Rb7c8]} Qb8 {[%emt 0:00:01]} 63. Bg6 {[%emt 0:04:31]} d4 {[%emt 0:00:17]} 64. a4 {[%emt 0:01:18][%cal Ba3a4,Ba4a5][%mdl 32]} d3 {[%emt 0:00:13]} 65. Rxd3 {[%emt 0:00:49]} (65. Kd1 $142 Kg8 66. a5 Kf8 67. a6 Ke7 68. Bxd3 (68. a7 Qh2 $14) 68... Kf6 69. a7 Qxa7 70. b8=Q Qg1+ 71. Kd2 Qg5+ 72. Kc2) 65... Qc7+ {[%emt 0:00:01]} 66. Kd1 {[%emt 0:00:12][%cal Oa4a5] White threatens a5! and mate.} Kg8 {[%emt 0:00:14]} 67. a5 {[%emt 0:00:30]} Kf8 {[%emt 0:00:02]} 68. Rf3+ {[%emt 0:00:16] Quite a comeback for White.  Weighted Error Value: White=0.66/Black=0.21 (precise)} 1-0

[Event "Slovakia Open 2022"]
[Site "Bratislava"]
[Date "2022.10.01"]
[Round "6.14"]
[White "Mizicka, Matus"]
[Black "Merva, Frantisek"]
[Result "0-1"]
[ECO "B00"]
[WhiteElo "1975"]
[BlackElo "1981"]
[Annotator "TA"]
[PlyCount "56"]
[EventDate "2022.09.30"]
[EventCountry "SVK"]
[SourceTitle "playchess.com"]
[Source "ChessBase"]
[SourceQuality "1"]
[TimeControl "2700+10"]

{[%evp 9,56,0,-3,-14,25,16,27,26,30,25,39,-25,-21,-11,-6,-18,21,12,48,43,36,32,75,31,27,0,0,-22,4,0,95,-23,41,19,55,58,47,-473,-441,-488,-475,-735,-734,-743,-549,-745,-635,-1670,-539]} 1. e4 {[%emt 0:00:05]} b6 {[%emt 0:00:44]} 2. d3 {[%emt 0:00:16]} Bb7 {[%emt 0:00:04]} 3. Nc3 {[%emt 0:00:12]} e6 {[%emt 0:00:49]} 4. g3 {[%emt 0:00:10]} Nf6 {[%emt 0:01:03]} 5. Bg2 {[%emt 0:00:04]} Be7 {[%emt 0:01:05]} 6. Nge2 {[%emt 0:00:21] B00: Queen's Fianchetto Defence, Nimzowitsch Defence.} d6 {[%emt 0:00:31]} 7. O-O {[%emt 0:00:09][%cal Oe4e5]} Nbd7 {[%emt 0:00:08] [#]} 8. f4 $146 {[%emt 0:00:08] White has an edge.} (8. e5 {is interesting.} Nd5 9. Nxd5 Bxd5 10. Bxd5 exd5 11. e6) ({Predecessor:} 8. h3 O-O 9. Be3 c5 10. g4 Ne5 11. Ng3 Ng6 12. f4 Nd7 13. f5 exf5 14. Nxf5 {0-1 (54) Petrenko,M (1666)-Ledovskih,V (1801) Omsk 2013}) 8... a6 {[%emt 0:00:43]} 9. h3 {[%emt 0:01:30]} Qc8 {[%emt 0:00:14]} 10. f5 {[%emt 0:00:25]} (10. a4 $14) 10... e5 $11 {[%emt 0:00:06]} 11. g4 {[%emt 0:00:19]} h6 {[%emt 0:00:16]} 12. Ng3 {[%emt 0:00:51]} Bc6 {[%emt 0:01:13]} 13. Nd5 {[%emt 0:02:29]} Nxd5 {[%emt 0:00:14]} (13... Bxd5 $5 14. exd5 O-O $14) 14. exd5 {[%emt 0:00:03]} Bb7 {[%emt 0:00:14]} 15. c4 {[%emt 0:00:10]} c6 {[%emt 0:02:04]} 16. dxc6 {[%emt 0:02:11]} (16. Nh5 $5 {[%cal Rh5g7]}) 16... Bxc6 {[%emt 0:00:10]} 17. Bxc6 {[%emt 0:00:56]} Qxc6 {[%emt 0:00:08]} 18. Nh5 {[%emt 0:00:08]} Bf6 {[%emt 0:02:40]} 19. Be3 {[%emt 0:03:35]} Bg5 {[%emt 0:00:33]} (19... O-O $11 {remains equal.}) 20. Bf2 {[%emt 0:00:10]} (20. Nxg7+ $16 Kd8 21. Bxg5+ hxg5 22. Nh5) 20... Kf8 {[%emt 0:00:10]} ({Black should try} 20... Nf6 $11) 21. Qe2 {[%emt 0:05:24]} Qc7 {[%emt 0:01:10]} 22. Rad1 {[%emt 0:00:10]} Re8 {[%emt 0:00:10]} 23. Nf6 $2 {[%emt 0:00:10][%mdl 8192] [#] White does not recover from this.} gxf6 {[%emt 0:01:33] Black is clearly winning.} 24. b4 {[%emt 0:04:04]} h5 {[%emt 0:00:11]} 25. c5 {[%emt 0:00:02]} (25. gxh5 $142 b5 26. Rfe1) 25... bxc5 $19 {[%emt 0:03:20]} 26. bxc5 {[%emt 0:00:10]} dxc5 {[%emt 0:00:10] [#] aiming for ...hxg4.} 27. Rb1 {[%emt 0:00:10]} Rc8 {[%emt 0:00:10]} 28. Bxc5+ {[%emt 0:04:12]} Kg7 {[%emt 0:00:05] Weighted Error Value: White=0.97/Black=0.41} 0-1

[Event "Slovakia Open 2022"]
[Site "Bratislava"]
[Date "2022.10.01"]
[Round "6.15"]
[White "Meszaros, Casey Ryan"]
[Black "Vadila, Ondrej"]
[Result "0-1"]
[ECO "A70"]
[WhiteElo "1925"]
[BlackElo "2178"]
[Annotator "TA"]
[PlyCount "62"]
[EventDate "2022.09.30"]
[EventCountry "SVK"]
[SourceTitle "playchess.com"]
[Source "ChessBase"]
[SourceQuality "1"]
[TimeControl "2700+10"]

{[%evp 14,62,56,30,63,40,54,29,36,26,17,0,17,0,45,27,23,-5,0,0,27,21,29,-118,-111,-210,-217,-232,-220,-239,-237,-250,-189,-248,-250,-339,-339,-416,-233,-214,-213,-224,-204,-216,-161,-165,-163,-149,-106,-117,-102]} 1. d4 {[%emt 0:01:59]} Nf6 {[%emt 0:00:02]} 2. c4 {[%emt 0:00:02]} c5 {[%emt 0:00:02]} 3. d5 {[%emt 0:00:52]} e6 {[%emt 0:00:03]} 4. Nf3 {[%emt 0:00:25]} exd5 {[%emt 0:00:03]} 5. cxd5 {[%emt 0:00:02]} d6 {[%emt 0:00:09]} 6. Nc3 {[%emt 0:00:04]} g6 {[%emt 0:00:03]} 7. e4 {[%emt 0:00:07]} Bg7 {[%emt 0:00:02] 7...a6 is more fashionable.} 8. Bb5+ {[%emt 0:00:08]} Nfd7 {[%emt 0:00:06] A70: Modern Benoni: 6 e4 g6 7 Nf3.} 9. O-O {[%emt 0:00:18]} (9. Bg5 {looks sharper.} Qb6 10. Nd2 O-O 11. a4) 9... O-O {[%emt 0:00:15] [#]} 10. Be3 $146 {[%emt 0:01:05]} ({Predecessor:} 10. Bg5 Qc7 11. Rc1 a6 12. Bd3 b5 13. b3 Re8 14. Re1 Ne5 15. Nxe5 Bxe5 16. f4 {1-0 (60) Jarocka,L (2006)-Goncharov,V (2077) Chess.com INT 2021}) 10... a6 {[%emt 0:00:15] White has an edge.} 11. Be2 {[%emt 0:00:26]} b5 {[%emt 0:00:05]} 12. Qc2 {[%emt 0:01:16]} Re8 {[%emt 0:00:45]} 13. Nd2 {[%emt 0:01:24]} Qc7 {[%emt 0:04:55]} 14. a4 {[%emt 0:03:16]} b4 {[%emt 0:02:17]} 15. Na2 {[%emt 0:00:11]} Ra7 {[%emt 0:04:49]} 16. Rac1 {[%emt 0:04:17][%cal Oa2b4]} Rb7 {[%emt 0:01:07]} 17. b3 {[%emt 0:01:02]} Nf6 {[%emt 0:01:38]} 18. f3 {[%emt 0:00:50]} (18. Rcd1 $11) 18... Nxd5 $1 $17 {[%emt 0:00:42]} 19. exd5 {[%emt 0:01:42]} (19. Bf2 $17) 19... Rxe3 $19 {[%emt 0:00:04]} 20. Nc4 {[%emt 0:01:28]} Re8 {[%emt 0:03:08]} 21. Bd3 {[%emt 0:01:43]} Qd8 {[%emt 0:00:54]} 22. Qd2 {[%emt 0:01:48]} Qf6 {[%emt 0:05:02]} 23. Rfe1 {[%emt 0:03:39]} (23. Rcd1 $142) 23... Rbe7 {[%emt 0:01:26]} 24. Be4 {[%emt 0:00:58]} Nd7 {[%emt 0:00:39][%cal Bb8d7,Bd7e5,Be5f7][%mdl 32]} 25. Na5 {[%emt 0:03:40]} Qd4+ {[%emt 0:01:51]} (25... Ne5 $142 {Strongly threatening ...Qh4.} 26. Rcd1 Qh4) 26. Qxd4 {[%emt 0:00:03]} Bxd4+ {[%emt 0:00:03]} ({But not} 26... cxd4 27. Nc6 Nc5 28. Nxe7+ Rxe7 29. Nxb4 $16) 27. Kf1 {[%emt 0:00:03]} Ne5 {[%emt 0:00:16][%cal Oe5g4]} 28. Rcd1 {[%emt 0:00:48]} f5 {[%emt 0:00:52]} 29. Bc2 {[%emt 0:01:46]} Bd7 {[%emt 0:00:32]} 30. Nb7 {[%emt 0:01:07]} Nf7 {[%emt 0:00:25]} 31. Rxe7 {[%emt 0:00:11]} Rxe7 {[%emt 0:00:04] Weighted Error Value: White=0.30/Black=0.24 (precise)} 0-1